fUST/lending_fUST_20240107
["ID","MTS","AMOUNT","RATE_DAILY","PERIOD"]
[310625940,1704589832502,-263.39607872,0.00018057,2]
[310625941,1704589832511,-155.11660093,0.0001806,2]
[310625942,1704589832520,-156.31643108,0.0001806,2]
[310625943,1704589832530,-529.70624536,0.00018074,2]
[310625944,1704589832547,-963.20595678,0.00018075,2]
[310625945,1704589832559,-957.54075731,0.0001844,2]
[310625946,1704589832569,-2633.35645047,0.00018444,2]
[310625947,1704589832578,-469.27046295,0.00018444,2]
[310625948,1704589832587,-2098.68320007,0.00018444,2]
[310625949,1704589832595,-2028.3271136,0.00018444,2]
[310625950,1704589832604,-11676.45192915,0.00018445,2]
[310625951,1704589832613,-174.489938,0.00019178,2]
[310625952,1704589832621,-174.489938,0.00019178,2]
[310625953,1704589832631,-22381.07,0.00019645,3]
[310625954,1704589832641,-3211.95582167,0.00019653,2]
[310625955,1704589832650,-360.34675522,0.00019654,2]
[310625956,1704589832790,-178.33919213,0.00019654,2]
[310625957,1704589832804,-22381.07,0.00019654,3]
[310625958,1704589832813,-22378.78189287,0.00019655,3]
[310626042,1704589841094,-14920.71,0.00019644,3]
[310626044,1704589841103,-399.67623567,0.00019662,2]
[310626046,1704589841113,-281.87765438,0.00019663,2]
[310626048,1704589841122,-166.83703235,0.00019663,2]
[310626050,1704589841131,-154.9732481,0.00019663,2]
[310626052,1704589841140,-155.60215864,0.00019663,2]
[310626054,1704589841150,-916.16876166,0.00019663,2]
[310626056,1704589841159,-864.76113224,0.00019663,2]
[310626058,1704589841168,-346.30140295,0.00019663,2]
[310626060,1704589841177,-1988.32263926,0.00019663,2]
[310626062,1704589841187,-1016.34475026,0.00019663,2]
[310626064,1704589841196,-299.93858707,0.00019663,2]
[310626066,1704589841205,-261.55260087,0.00019664,2]
[310626068,1704589841214,-155.03786366,0.00019664,2]
[310626070,1704589841223,-11357.87374292,0.00019664,2]
[310626072,1704589841232,-27960.74838587,0.00019665,2]
[310626074,1704589841240,-3717.15925622,0.00019767,2]
[310626075,1704589841250,-269.29457861,0.0002,2]
[310626077,1704589841259,-576.55686335,0.0002,2]
[310626079,1704589841268,-891.59096291,0.0002,2]
[310626082,1704589841277,-331.78464483,0.0002,2]
[310626085,1704589841286,-154.86062544,0.0002,2]
[310626087,1704589841295,-183.94826502,0.0002,2]
[310626089,1704589841304,-180.235392,0.0002,2]
[310626091,1704589841313,-180.235392,0.0002,2]
[310626093,1704589841322,-180.235392,0.0002,2]
[310626095,1704589841332,-50000.0,0.00020621,2]
[310626097,1704589841341,-50000.0,0.00020637,2]
[310626099,1704589841350,-2680.60745421,0.00020702,2]
[310626101,1704589841359,-6835.91396511,0.00020702,2]
[310626103,1704589841368,-151.50827296,0.00021058,2]
[310626105,1704589841378,-306.0,0.00021178,2]
[310626107,1704589841387,-50000.0,0.00021478,2]
[310626109,1704589841396,-1820.2732084,0.00021868,2]
[310626111,1704589841410,-3828.75917495,0.00021868,2]
[310626113,1704589841418,-342.16724442,0.00021868,2]
[310626115,1704589841427,-1033.17912544,0.00021868,2]
[310626117,1704589841436,-546.3627241,0.00021868,2]
[310626119,1704589841446,-200.0,0.00021868,2]
[310626121,1704589841455,-300.0,0.00021868,2]
[310626123,1704589841465,-166.666666,0.00021918,2]
[310626125,1704589841474,-292.22430993,0.00022,4]
[310626127,1704589841484,-4912.75517152,0.00022,2]
[310626129,1704589841494,-3916.3398371,0.00022,2]
[310626131,1704589841503,-154.86062544,0.00022,2]
[310626133,1704589841513,-156.72230709,0.00022,2]
[310626135,1704589841522,-166.666666,0.00022431,2]
[310626137,1704589841531,-155.01506558,0.00022761,2]
[310626139,1704589841540,-242.3851774,0.0002277,2]
[310626141,1704589841550,-246.26509339,0.00022771,2]
[310626143,1704589841559,-1003.73562959,0.00022771,2]
[310626145,1704589841568,-26178.2356188,0.00022772,2]
[310626147,1704589841579,-155.021211,0.00022772,2]
[310626149,1704589841588,-166.666666,0.00022944,2]
[310626151,1704589841597,-484.370562,0.00022997,2]
[310626152,1704589841606,-484.370562,0.00022997,2]
[310626154,1704589841615,-151.0,0.00022997,2]
[310626156,1704589841624,-50000.0,0.00022997,2]
[310626158,1704589841634,-2091.44093784,0.00023,2]
[310626160,1704589841643,-9910.17247127,0.00023,2]
[310626162,1704589841654,-411.80210469,0.00023002,2]
[310626164,1704589841663,-1826.74903893,0.00023002,2]
[310626167,1704589841672,-441.47937965,0.00023002,2]
[310626169,1704589841682,-293.73363054,0.00023002,2]
[310626170,1704589841692,-226.35993757,0.00023002,2]
[310626172,1704589841702,-233.46361742,0.00023003,2]
[310626174,1704589841712,-2809.982769,0.00023003,2]
[310626176,1704589841721,-484.370562,0.00023004,2]
[310626178,1704589841730,-484.370562,0.00023004,2]
[310626180,1704589841742,-151.0,0.00023004,2]
[310626182,1704589841752,-207.19093284,0.00023025,2]
[310626184,1704589841761,-204.8358919,0.00023026,2]
[310626186,1704589841771,-484.370562,0.00023027,2]
[310626188,1704589841781,-484.370562,0.00023027,2]
[310626190,1704589841790,-151.0,0.00023027,2]
[310626192,1704589841799,-497.47309259,0.00023288,2]
[310626194,1704589841809,-503.44836538,0.00023288,2]
[310626195,1704589841818,-502.31660412,0.00023288,2]
[310626197,1704589841827,-500.0,0.00023288,2]
[310626199,1704589841836,-515.19294378,0.00023288,2]
[310626201,1704589841845,-500.0,0.00023288,2]
[310626203,1704589841854,-253.41278944,0.00023288,2]
[310626205,1704589841864,-242.88068377,0.00023288,2]
[310626207,1704589841872,-622.78941566,0.00023288,2]
[310626209,1704589841881,-441.13892587,0.00023288,2]
[310626211,1704589841890,-434.58613341,0.00023288,2]
[310626212,1704589841902,-226.02383683,0.00023288,2]
[310626214,1704589841911,-520.46308626,0.00023288,2]
[310626216,1704589841920,-500.0,0.00023288,2]
[310626218,1704589841929,-223.05560839,0.00023288,2]
[310626220,1704589841938,-186.83682469,0.00023288,2]
[310626222,1704589841947,-500.0,0.00023288,2]
[310626224,1704589841956,-485.37502378,0.00023288,2]
[310626226,1704589841965,-247.3472988,0.00023288,2]
[310626228,1704589841974,-194.1500095,0.00023288,2]
[310626230,1704589841984,-500.0,0.00023288,2]
[310626232,1704589841993,-500.0,0.00023288,2]
[310626234,1704589842002,-439.36671105,0.00023288,2]
[310626236,1704589842011,-302.22819778,0.00023288,2]
[310626238,1704589842020,-500.0,0.00023288,2]
[310626240,1704589842030,-197.17314068,0.00023288,2]
[310626242,1704589842039,-166.666666,0.00023456,2]
[310626244,1704589842048,-50000.0,0.00023827,2]
[310626246,1704589842057,-235.0,0.00023827,2]
[310626248,1704589842066,-166.666666,0.00023969,2]
[310626250,1704589842075,-8871.63829911,0.00024,2]
[310626252,1704589842084,-155.13204423,0.00024,2]
[310626253,1704589842094,-2291.27896623,0.00024,2]
[310626256,1704589842105,-484.370562,0.00024257,2]
[310626258,1704589842115,-484.370562,0.00024257,2]
[310626259,1704589842125,-50000.0,0.00024257,2]
[310626260,1704589842133,-50000.0,0.00024258,2]
[310626262,1704589842142,-484.370562,0.00024258,2]
[310626264,1704589842153,-484.370562,0.00024258,2]
[310626266,1704589842163,-500.0,0.00024265,4]
[310626268,1704589842172,-500.0,0.00024265,4]
[310626269,1704589842181,-500.0,0.00024265,4]
[310626271,1704589842190,-500.0,0.00024265,4]
[310626273,1704589842199,-500.0,0.00024265,4]
[310626275,1704589842208,-500.0,0.00024265,4]
[310626276,1704589842217,-500.0,0.00024265,4]
[310626278,1704589842226,-500.0,0.00024265,4]
[310626280,1704589842235,-500.0,0.00024265,4]
[310626282,1704589842244,-500.0,0.00024265,4]
[310626284,1704589842253,-500.0,0.00024265,4]
[310626286,1704589842262,-430.25460765,0.00024265,4]
[310626288,1704589842271,-500.0,0.00024265,4]
[310626290,1704589842280,-500.0,0.00024265,4]
[310626292,1704589842289,-500.0,0.00024265,4]
[310626294,1704589842299,-500.0,0.00024265,4]
[310626296,1704589842308,-631.23817433,0.00024265,4]
[310626297,1704589842318,-500.0,0.00024265,4]
[310626299,1704589842328,-409.36887206,0.00024265,4]
[310626301,1704589842337,-500.0,0.00024265,4]
[310626302,1704589842346,-455.34090995,0.00024265,4]
[310626304,1704589842355,-500.0,0.00024265,4]
[310626306,1704589842364,-563.0846066,0.00024265,4]
[310626308,1704589842374,-464.60139005,0.00024265,4]
[310626309,1704589842383,-500.0,0.00024265,4]
[310626310,1704589842392,-500.0,0.00024265,4]
[310626311,1704589842403,-500.0,0.00024265,4]
[310626312,1704589842412,-200.01260433,0.00024265,4]
[310626313,1704589842422,-500.0,0.00024265,4]
[310626315,1704589842517,-50000.0,0.00024266,2]
[310626316,1704589842528,-484.370562,0.00024266,2]
[310626317,1704589842538,-484.370562,0.00024266,2]
[310626318,1704589842547,-484.370562,0.00024289,2]
[310626319,1704589842557,-484.370562,0.00024289,2]
[310626320,1704589842566,-1192.95254363,0.00024298,2]
[310626321,1704589842576,-328.13847834,0.00024299,2]
[310626322,1704589842585,-23697.68717507,0.000243,2]
[310626323,1704589842594,-166.666666,0.00024482,2]
[310626324,1704589842604,-414.05067255,0.00024658,2]
[310626325,1704589842613,-195.0933184,0.00024658,2]
[310626326,1704589842622,-3717.15925622,0.00024767,2]
[310626327,1704589842632,-701.27949935,0.0002483,2]
[310626329,1704589842641,-1321.80054486,0.000249,2]
[310626330,1704589842652,-613.44573934,0.00025,2]
[310626331,1704589842663,-3000.0,0.00025,2]
[310626332,1704589842675,-4707.01098899,0.00025,2]
[310626333,1704589842684,-2483.08597309,0.00025,2]
[310626334,1704589842694,-154.86062544,0.00025,2]
[310626335,1704589842703,-334.0,0.00025,2]
[310626336,1704589842713,-154.86062544,0.00025,2]
[310626337,1704589842723,-676.66041167,0.00025,2]
[310626338,1704589842732,-154.86062544,0.00025,2]
[310626339,1704589842742,-782.53977049,0.00025,2]
[310626340,1704589842752,-484.370562,0.00025,2]
[310626341,1704589842761,-484.370562,0.00025,2]
[310626342,1704589842771,-1003.74472514,0.00025,2]
[310626343,1704589842780,-151.0,0.00025035,2]
[310626344,1704589842789,-50000.0,0.00025037,2]
[310626346,1704589842798,-9286.90575802,0.00025297,2]
[310626348,1704589842808,-223.887202,0.00025547,2]
[310626350,1704589842818,-525.41295756,0.00026,2]
[310626352,1704589842827,-3483.05102754,0.00026,2]
[310626354,1704589842838,-240.49392457,0.00026,2]
[310626356,1704589842847,-624.06397497,0.00026072,2]
[310626358,1704589842856,-5000.0,0.00026426,2]
[310626360,1704589842865,-13770.55898896,0.00026426,2]
[310626361,1704589842874,-5000.0,0.00026426,2]
[310626363,1704589842884,-5000.0,0.00026426,2]
[310626364,1704589842894,-5000.0,0.00026426,2]
[310626365,1704589842908,-5000.0,0.00026426,2]
[310626366,1704589842918,-17453.63645265,0.00026426,2]
[310626367,1704589842929,-5000.0,0.00026426,2]
[310626368,1704589842939,-5000.0,0.00026426,2]
[310626369,1704589842948,-5000.0,0.00026426,2]
[310626370,1704589842957,-15500.60646245,0.00026426,2]
[310626371,1704589842967,-4650.18193873,0.00026426,2]
[310626372,1704589842976,-5000.0,0.00026426,2]
[310626374,1704589842985,-5000.0,0.00026426,2]
[310626376,1704589842993,-5000.0,0.00026426,2]
[310626378,1704589843002,-5000.0,0.00026426,2]
[310626379,1704589843012,-5000.0,0.00026426,2]
[310626381,1704589843022,-5000.0,0.00026426,2]
[310626382,1704589843031,-5000.0,0.00026426,2]
[310626383,1704589843040,-5000.0,0.00026426,2]
[310626385,1704589843049,-5000.0,0.00026426,2]
[310626386,1704589843059,-41820.65195791,0.00026426,2]
[310626387,1704589843068,-5000.0,0.00026426,2]
[310626388,1704589843077,-5000.0,0.00026426,2]
[310626390,1704589843087,-5000.0,0.00026426,2]
[310626392,1704589843096,-5000.0,0.00026426,2]
[310626393,1704589843105,-5000.0,0.00026426,2]
[310626394,1704589843114,-12822.9845477,0.00026426,2]
[310626395,1704589843124,-484.370562,0.00026426,2]
[310626396,1704589843133,-484.370562,0.00026426,2]
[310626398,1704589843144,-484.370562,0.00026426,2]
[310626400,1704589843158,-484.370565,0.00026426,2]
[310626401,1704589843167,-762.80188617,0.00026473,2]
[310626403,1704589843176,-3004.54432201,0.00026473,2]
[310626405,1704589843184,-163.151197,0.000265,2]
[310626407,1704589843193,-173.15435456,0.00026523,2]
[310626408,1704589843202,-724.34728731,0.00026526,2]
[310626410,1704589843211,-335.28431351,0.00026528,2]
[310626412,1704589843220,-298.40079274,0.00026528,2]
[310626414,1704589843229,-207.03901709,0.00026528,2]
[310626416,1704589843238,-337.06645675,0.00026528,2]
[310626418,1704589843247,-953.36702166,0.00026528,2]
[310626420,1704589843257,-522.51047534,0.00026528,2]
[310626422,1704589843266,-363.29753573,0.00026528,2]
[310626424,1704589843274,-269.52294544,0.00026528,2]
[310626426,1704589843284,-11065.38377951,0.00026528,2]
[310626428,1704589843293,-30749.4660998,0.00026565,2]
[310626430,1704589843302,-50000.0,0.00026576,2]
[310626431,1704589843311,-50000.0,0.00026576,2]
[310626433,1704589843321,-2000.0,0.000266,2]
[310626435,1704589843330,-904.0,0.000266,2]
[310626437,1704589843339,-2000.0,0.0002661,2]
[310626439,1704589843349,-585.90397292,0.00026618,2]
[310626441,1704589843358,-249.97382645,0.00026618,2]
[310626443,1704589843368,-2706.33955526,0.00026618,2]
[310626445,1704589843377,-198.66992878,0.00026618,2]
[310626447,1704589843386,-606.18577739,0.00026618,2]
[310626448,1704589843396,-154.87609912,0.00026618,2]
[310626450,1704589843408,-384.86759273,0.00026619,2]
[310626452,1704589843419,-2000.0,0.0002662,2]
[310626453,1704589843429,-508.6242048,0.00026628,2]
[310626455,1704589843438,-230.84808073,0.00026629,2]
[310626456,1704589843448,-433.64886704,0.0002663,2]
[310626458,1704589843458,-2000.0,0.0002663,2]
[310626460,1704589843467,-155.18285666,0.00026633,2]
[310626461,1704589843477,-156.40361276,0.00026633,2]
[310626463,1704589843486,-400.16424933,0.00026633,2]
[310626465,1704589843496,-234.48957017,0.00026633,2]
[310626467,1704589843505,-154.97130112,0.00026633,2]
[310626469,1704589843515,-241.75019243,0.00026634,2]
[310626471,1704589843525,-2000.0,0.0002664,2]
[310626473,1704589843534,-297.24403754,0.00026643,2]
[310626475,1704589843543,-156.19249059,0.00026643,2]
[310626477,1704589843552,-242.79110021,0.00026643,2]
[310626479,1704589843562,-283.82704819,0.00026643,2]
[310626481,1704589843571,-155.54479063,0.00026643,2]
[310626483,1704589843579,-287.21277325,0.00026643,2]
[310626484,1704589843590,-155.01075224,0.00026643,2]
[310626486,1704589843599,-266.24181002,0.00026643,2]
[310626488,1704589843608,-223.62862816,0.00026643,2]
[310626489,1704589843617,-1094.59579196,0.00026643,2]
[310626490,1704589843627,-1000.0,0.00026644,2]
[310626492,1704589843636,-18748.87480491,0.00026645,2]
[310626494,1704589843645,-2000.0,0.0002665,2]
[310626496,1704589843657,-2000.0,0.0002666,2]
[310626498,1704589843666,-2000.0,0.0002667,2]
[310626500,1704589843675,-2000.0,0.0002668,2]
[310626502,1704589843684,-2000.0,0.0002669,2]
[310626504,1704589843693,-2000.0,0.000267,2]
[310626506,1704589843703,-2000.0,0.0002671,2]
[310626508,1704589843712,-2000.0,0.0002672,2]
[310626510,1704589843721,-176.40697611,0.00026722,2]
[310626511,1704589843730,-2000.0,0.0002673,2]
[310626513,1704589843739,-2000.0,0.0002674,2]
[310626515,1704589843748,-2000.0,0.0002675,2]
[310626517,1704589843757,-2000.0,0.0002676,2]
[310626519,1704589843767,-2000.0,0.0002677,2]
[310626521,1704589843776,-2000.0,0.0002678,2]
[310626523,1704589843785,-2693.647152,0.0002679,2]
[310626525,1704589843794,-150.0,0.00026878,2]
[310626527,1704589843803,-150.0,0.00026878,2]
[310626529,1704589843812,-1500.0,0.00027,2]
[310626531,1704589843821,-151.0,0.00027075,2]
[310626533,1704589843830,-620.20319875,0.00027375,2]
[310626535,1704589843839,-155.0,0.00027397,2]
[310626537,1704589843847,-500.0,0.00027397,2]
[310626539,1704589843856,-500.0,0.00027397,2]
[310626540,1704589843866,-500.0,0.00027397,2]
[310626541,1704589843874,-500.0,0.00027397,2]
[310626542,1704589843883,-591.84427142,0.00027397,2]
[310626543,1704589843892,-305.614757,0.00027397,3]
[310626544,1704589843904,-37028.17986472,0.000275,2]
[310626545,1704589843914,-316.17289526,0.00028,2]
[310626546,1704589843923,-154.87609912,0.00028,2]
[310626547,1704589843934,-237.22154841,0.00028,2]
[310626548,1704589843944,-1500.0,0.00028,2]
[310626549,1704589843953,-157.4556165,0.0002828,2]
[310626550,1704589843962,-824219.82302268,0.0002843,2]
[310626551,1704589843971,-21337.26703183,0.0002843,2]
[310626552,1704589843980,-1000.0,0.00028567,2]
[310626553,1704589843989,-1000.0,0.00028617,2]
[310626554,1704589843998,-1000.0,0.00028669,2]
[310626555,1704589844007,-620.01015994,0.00028744,2]
[310626556,1704589844017,-155.0,0.00028767,2]
[310626557,1704589844025,-1000.0,0.0002877,2]
[310626558,1704589844035,-1000.0,0.00028772,2]
[310626559,1704589844044,-39724.52534968,0.00028796,2]
[310626560,1704589844054,-4880.7,0.00028969,2]
[310626561,1704589844063,-4880.7,0.00028969,2]
[310626562,1704589844072,-4880.7,0.00028969,2]
[310626563,1704589844081,-4880.7,0.00028969,2]
[310626564,1704589844090,-4880.7,0.00028969,2]
[310626565,1704589844099,-4880.7,0.00028969,2]
[310626566,1704589844108,-4880.7,0.00028969,2]
[310626567,1704589844117,-4880.7,0.00028969,2]
[310626568,1704589844126,-4880.7,0.00028969,2]
[310626569,1704589844135,-4880.7,0.00028969,2]
[310626570,1704589844144,-830.14142057,0.00029,2]
[310626571,1704589844153,-1500.0,0.00029,2]
[310626572,1704589844162,-151.0,0.00029114,2]
[310626573,1704589844171,-281.43822648,0.00029244,2]
[310626574,1704589844181,-2706.30963015,0.00029332,2]
[310626575,1704589844191,-150.8642222,0.00029519,30]
[310626576,1704589844201,-3388.41467337,0.00029576,2]
[310626577,1704589844210,-304.72111209,0.00029576,2]
[310626578,1704589844219,-50000.0,0.00029605,5]
[310626579,1704589844229,-154.87609912,0.000297,2]
[310626580,1704589844239,-2034.55231233,0.000297,2]
[310626581,1704589844248,-30345.58201185,0.000297,7]
[310626582,1704589844257,-220.74714833,0.000297,2]
[310626583,1704589844267,-9313.46237241,0.000297,2]
[310626584,1704589844276,-157.69849382,0.000297,2]
[310626585,1704589844284,-300.0,0.000297,14]
[310626586,1704589844293,-101542.89914882,0.0002979,7]
[310626587,1704589844308,-10202.84952288,0.0002979,7]
[310626588,1704589844319,-107308.83344702,0.0002979,7]
[310626589,1704589844328,-312.6006807,0.000298,2]
[310626590,1704589844338,-111230.277039,0.00029828,30]
[310626591,1704589844347,-3602.69667961,0.00029837,2]
[310626592,1704589844355,-3602.69667961,0.00029837,2]
[310626593,1704589844364,-3602.69667961,0.00029837,2]
[310626594,1704589844373,-3602.69667961,0.00029837,2]
[310626595,1704589844382,-3602.69667961,0.00029837,2]
[310626596,1704589844391,-3602.69667961,0.00029837,2]
[310626597,1704589844400,-3602.69667961,0.00029837,2]
[310626598,1704589844410,-3602.69667961,0.00029837,2]
[310626599,1704589844419,-3602.69667961,0.00029837,2]
[310626600,1704589844428,-3602.69667961,0.00029837,2]
[310626601,1704589844437,-496.4931708,0.0002985,5]
[310626602,1704589844446,-170.63772567,0.0003,2]
[310626603,1704589844455,-4946.74524524,0.0003,4]
[310626604,1704589844465,-685.91694047,0.0003,4]
[310626605,1704589844474,-373.19166019,0.0003,10]
[310626606,1704589844483,-639.5302461,0.0003,4]
[310626607,1704589844492,-5183.83893148,0.0003,3]
[310626608,1704589844501,-10000.0,0.0003,2]
[310626609,1704589844510,-711.4674745,0.0003,10]
[310626610,1704589844519,-223.91693026,0.0003,12]
[310626611,1704589844528,-2000.0,0.0003,2]
[310626612,1704589844537,-1500.0,0.0003,2]
[310626613,1704589844547,-277.0,0.0003,2]
[310626614,1704589844556,-2000.0,0.0003001,2]
[310626615,1704589844565,-2000.0,0.0003002,2]
[310626616,1704589844575,-2000.0,0.0003003,2]
[310626617,1704589844584,-2000.0,0.0003004,2]
[310626618,1704589844593,-2000.0,0.0003005,2]
[310626619,1704589844603,-2000.0,0.0003006,2]
[310626620,1704589844612,-2000.0,0.0003007,2]
[310626621,1704589844622,-2000.0,0.0003008,2]
[310626622,1704589844632,-2000.0,0.0003009,2]
[310626623,1704589844641,-2000.0,0.000301,2]
[310626624,1704589844651,-2000.0,0.0003011,2]
[310626625,1704589844660,-2000.0,0.0003012,2]
[310626626,1704589844669,-150.8642222,0.00030121,7]
[310626627,1704589844678,-3156.352847,0.0003013,2]
[310626628,1704589844687,-155.0,0.00030137,2]
[310626629,1704589844697,-620.000508,0.00030181,2]
[310626630,1704589844706,-200.0,0.000303,4]
[310626631,1704589844716,-150.8642222,0.00030736,4]
[310626632,1704589844726,-78219.53551312,0.00031,4]
[310626633,1704589844736,-151.0,0.00031153,2]
[310626634,1704589844748,-300.0,0.000312,15]
[310626635,1704589844832,-150.8642222,0.00031363,2]
[310626636,1704589844843,-155.0,0.00031507,2]
[310626637,1704589844852,-620.0000254,0.0003169,2]
[310626638,1704589844862,-37481.05438435,0.00032,10]
[310626639,1704589844871,-300.0,0.000327,16]
[310626640,1704589844880,-213.20275397,0.00032876,7]
[310626641,1704589844890,-215.76358516,0.00032876,7]
[310626642,1704589844898,-500.0,0.00032876,7]
[310626643,1704589844909,-261.39470783,0.00032876,7]
[310626644,1704589844918,-373.6736494,0.00032876,7]
[310626645,1704589844928,-264.68335552,0.00032876,7]
[310626646,1704589844937,-260.75168005,0.00032876,7]
[310626647,1704589844946,-291.22501427,0.00032876,7]
[310626648,1704589844955,-188.30001902,0.00032876,7]
[310626649,1704589844964,-601.67114833,0.00032876,7]
[310626650,1704589844973,-500.0,0.00032876,7]
[310626651,1704589844983,-500.0,0.00032876,7]
[310626652,1704589844992,-500.0,0.00032876,7]
[310626653,1704589845002,-500.0,0.00032876,7]
[310626654,1704589845011,-500.0,0.00032876,7]
[310626655,1704589845020,-500.0,0.00032876,7]
[310626656,1704589845029,-500.0,0.00032876,7]
[310626657,1704589845038,-500.0,0.00032876,7]
[310626658,1704589845047,-197.69095574,0.00032876,7]
[310626659,1704589845057,-500.0,0.00032876,7]
[310626660,1704589845066,-500.0,0.00032876,7]
[310626661,1704589845076,-522.87985551,0.00032876,7]
[310626662,1704589845085,-500.0,0.00032876,7]
[310626663,1704589845094,-466.50568246,0.00032876,7]
[310626664,1704589845103,-378.7429046,0.00032876,7]
[310626665,1704589845112,-500.0,0.00032876,7]
[310626666,1704589845121,-500.0,0.00032876,7]
[310626667,1704589845130,-337.85076396,0.00032876,7]
[310626668,1704589845140,-500.0,0.00032876,7]
[310626669,1704589845149,-500.0,0.00032876,7]
[310626670,1704589845161,-473.45104254,0.00032876,7]
[310626671,1704589845170,-500.0,0.00032876,7]
[310626672,1704589845179,-155.0,0.00032877,2]
[310626673,1704589845188,-5000.0,0.000329,7]
[310626674,1704589845197,-5000.0,0.000329,7]
[310626675,1704589845206,-4354.51209965,0.00032911,7]
[310626676,1704589845275,-500.0,0.00032876,7]
[310626677,1704589845284,-645.48790035,0.00032911,7]
[310626678,1704589845293,-1474.621482,0.00033,2]
[310626679,1704589845302,-687.43326433,0.00033,3]
[310626680,1704589845311,-1000.0,0.00033,33]
[310626681,1704589845321,-277.0,0.00033,2]
[310626682,1704589845330,-277.0,0.00033,2]
[310626683,1704589845339,-151.0,0.00033192,2]
[310626684,1704589845348,-620.00000127,0.00033275,2]
[310626685,1704589845357,-1000.0,0.00034,7]
[310626686,1704589845367,-18273.20659535,0.00034,2]
[310626687,1704589845449,-500.0,0.00024265,4]
[310626688,1704589845458,-77.31179079,0.00034,2]
[310627075,1704591032486,-154.86062544,0.00019534,2]
[310627076,1704591032495,-154.86062544,0.00019535,2]
[310627077,1704591032505,-154.86062544,0.00019536,3]
[310627078,1704591032514,-155.69701828,0.00019537,2]
[310627079,1704591032523,-4127.71756179,0.00019727,2]
[310627080,1704591032532,-3383.93994597,0.00019727,2]
[310627081,1704591032541,-24900.0,0.00019728,2]
[310627082,1704591032550,-180.235392,0.0002,2]
[310627083,1704591032559,-180.235392,0.0002,2]
[310627084,1704591032567,-154.86062544,0.0002,2]
[310627085,1704591032576,-177.074096,0.00020214,2]
[310627086,1704591032585,-250.0,0.00020224,2]
[310627087,1704591032594,-155.69701826,0.00020399,2]
[310627088,1704591032603,-217.386201,0.00020885,2]
[310627089,1704591032612,-375.244118,0.00021254,2]
[310627090,1704591032621,-155.69701826,0.00021262,2]
[310627092,1704591032630,-173.39646714,0.00021425,2]
[310627094,1704591032639,-155.32223881,0.00021521,2]
[310627096,1704591032648,-323.76462615,0.00021524,2]
[310627098,1704591032656,-179.824082,0.00021525,2]
[310627100,1704591032665,-166.666666,0.00021918,2]
[310627102,1704591032675,-9010.0,0.00021918,2]
[310627103,1704591032683,-350.18766556,0.00022,4]
[310627105,1704591032693,-3274.44536263,0.00022,2]
[310627110,1704591032730,-1638.30980889,0.00022,2]
[310627112,1704591032739,-155.69701826,0.00022124,2]
[310627114,1704591032748,-156.72230709,0.0002243,2]
[310627116,1704591032757,-166.666666,0.00022431,2]
[310627118,1704591032766,-166.666666,0.00022944,2]
[310627120,1704591032776,-155.69701826,0.00022987,2]
[310627122,1704591032785,-3916.3398371,0.00022999,2]
[310627124,1704591032794,-2091.44093784,0.00023,2]
[310627126,1704591032803,-166.666666,0.00023456,2]
[310627128,1704591032813,-155.69701826,0.00023849,2]
[310627130,1704591032823,-166.666666,0.00023969,2]
[310627132,1704591032833,-3935.27524531,0.0002398,3]
[310627152,1704591038808,-879.92164761,0.00023989,2]
[310627153,1704591038817,-9322.92787527,0.00023997,2]
[310627154,1704591038829,-587.244596,0.00023997,2]
[310627155,1704591038838,-154.86062544,0.00024,2]
[310627156,1704591038848,-2291.79732899,0.00024251,2]
[310627157,1704591038858,-8873.92033072,0.00024251,2]
[310627158,1704591038867,-1977.9504554,0.00024262,2]
[310627159,1704591038877,-751.74260324,0.00024264,2]
[310627160,1704591038886,-617.52618345,0.00024264,2]
[310627161,1704591038895,-166.666666,0.00024482,2]
[310627162,1704591038905,-1322.14485269,0.000249,2]